[Event "Early-Titled-Tuesday-Blitz-March-05-2024"]
[Site "Chess.com"]
[Date "2024.03.05"]
[Round "11"]
[White "sorch29"]
[Black "M1711"]
[Result "1-0"]
[WhiteElo "2474"]
[BlackElo "2573"]
[TimeControl "180+1"]
[EndTime "10:12:45 PST"]
[Termination "sorch29 won by checkmate"]

1. d4 {[%clk 0:01:44.3]} 1... Nf6 {[%clk 0:02:36.2]} 2. c4 {[%clk 0:01:43.6]}
2... c5 {[%clk 0:02:36.9]} 3. Nf3 {[%clk 0:01:43.4]} 3... e6 {[%clk 0:02:35.4]}
4. Nc3 {[%clk 0:01:43.3]} 4... cxd4 {[%clk 0:02:35.4]} 5. Nxd4 {[%clk
0:01:44.2]} 5... a6 {[%clk 0:02:35.1]} 6. e3 {[%clk 0:01:43.4]} 6... d6 {[%clk
0:02:35.4]} 7. Be2 {[%clk 0:01:43]} 7... Be7 {[%clk 0:02:36.1]} 8. O-O {[%clk
0:01:43.6]} 8... O-O {[%clk 0:02:37]} 9. b3 {[%clk 0:01:44.1]} 9... Qc7 {[%clk
0:02:37.9]} 10. Bb2 {[%clk 0:01:44.5]} 10... Nbd7 {[%clk 0:02:38.8]} 11. Rc1
{[%clk 0:01:44.7]} 11... b6 {[%clk 0:02:39.4]} 12. Bf3 {[%clk 0:01:45]} 12...
Bb7 {[%clk 0:02:39.7]} 13. Bxb7 {[%clk 0:01:44.5]} 13... Qxb7 {[%clk 0:02:40.6]}
14. Qf3 {[%clk 0:01:45.2]} 14... Qxf3 {[%clk 0:02:40.7]} 15. Nxf3 {[%clk
0:01:46.1]} 15... Rac8 {[%clk 0:02:41.1]} 16. Rfd1 {[%clk 0:01:45.6]} 16... Rfd8
{[%clk 0:02:41.1]} 17. Kf1 {[%clk 0:01:46]} 17... h6 {[%clk 0:02:34.9]} 18. Ke2
{[%clk 0:01:45.2]} 18... Kf8 {[%clk 0:02:31.8]} 19. Ba3 {[%clk 0:01:42.2]} 19...
Nc5 {[%clk 0:02:31.9]} 20. Ne1 {[%clk 0:01:40.4]} 20... Ke8 {[%clk 0:02:30.2]}
21. Nd3 {[%clk 0:01:40.7]} 21... Rc7 {[%clk 0:02:26.6]} 22. h3 {[%clk
0:01:35.2]} 22... Rdc8 {[%clk 0:02:23.4]} 23. Nxc5 {[%clk 0:01:33.7]} 23... dxc5
{[%clk 0:02:22]} 24. g4 {[%clk 0:01:24]} 24... Rd7 {[%clk 0:02:20.6]} 25. Rxd7
{[%clk 0:01:23.4]} 25... Nxd7 {[%clk 0:02:19.6]} 26. Ne4 {[%clk 0:01:22.1]}
26... g6 {[%clk 0:02:09.7]} 27. Bb2 {[%clk 0:01:18.5]} 27... Rc6 {[%clk
0:02:07.7]} 28. f4 {[%clk 0:01:16.1]} 28... f5 {[%clk 0:02:07.4]} 29. Nf2 {[%clk
0:01:14]} 29... Bf6 {[%clk 0:02:04.9]} 30. Bxf6 {[%clk 0:01:07.6]} 30... Nxf6
{[%clk 0:02:05.8]} 31. Rd1 {[%clk 0:01:08.4]} 31... Ke7 {[%clk 0:02:03.5]} 32.
Kf3 {[%clk 0:01:08.5]} 32... Rd6 {[%clk 0:02:02.1]} 33. Rxd6 {[%clk 0:01:08.2]}
33... Kxd6 {[%clk 0:02:03]} 34. e4 {[%clk 0:01:08.9]} 34... Ke7 {[%clk 0:01:56]}
35. e5 {[%clk 0:01:03.4]} 35... Nd7 {[%clk 0:01:47.3]} 36. Nd3 {[%clk
0:00:53.8]} 36... Nb8 {[%clk 0:01:44.4]} 37. b4 {[%clk 0:00:53.2]} 37... cxb4
{[%clk 0:01:41.5]} 38. Nxb4 {[%clk 0:00:54.1]} 38... a5 {[%clk 0:01:42.1]} 39.
Nc2 {[%clk 0:00:47.5]} 39... Na6 {[%clk 0:01:35.1]} 40. Ke3 {[%clk 0:00:43]}
40... Kd7 {[%clk 0:01:25.5]} 41. Kd4 {[%clk 0:00:42.3]} 41... Nb8 {[%clk
0:01:16.3]} 42. Kc3 {[%clk 0:00:39]} 42... Nc6 {[%clk 0:01:13.5]} 43. a4 {[%clk
0:00:35.5]} 43... Nb8 {[%clk 0:01:10.4]} 44. Nd4 {[%clk 0:00:31.9]} 44... Na6
{[%clk 0:01:08.1]} 45. Nb3 {[%clk 0:00:32.2]} 45... Kd8 {[%clk 0:01:02.8]} 46.
Kd4 {[%clk 0:00:29.6]} 46... Kc7 {[%clk 0:00:55.1]} 47. c5 {[%clk 0:00:25.3]}
47... Kc6 {[%clk 0:00:48]} 48. cxb6 {[%clk 0:00:22.6]} 48... Kxb6 {[%clk
0:00:48.9]} 49. gxf5 {[%clk 0:00:20]} 49... gxf5 {[%clk 0:00:48.8]} 50. Kc4
{[%clk 0:00:18.2]} 50... Nc7 {[%clk 0:00:45.3]} 51. Nd4 {[%clk 0:00:18.3]} 51...
h5 {[%clk 0:00:27.7]} 52. h4 {[%clk 0:00:18.2]} 52... Nd5 {[%clk 0:00:23.7]} 53.
Nxe6 {[%clk 0:00:18.1]} 53... Ne3+ {[%clk 0:00:24.1]} 54. Kd4 {[%clk 0:00:15]}
54... Ng2 {[%clk 0:00:24.5]} 55. Ng7 {[%clk 0:00:11.4]} 55... Nxh4 {[%clk
0:00:25]} 56. Nxh5 {[%clk 0:00:11.2]} 56... Kc6 {[%clk 0:00:21.3]} 57. Ng7
{[%clk 0:00:07.1]} 57... Ng6 {[%clk 0:00:15.6]} 58. Nxf5 {[%clk 0:00:05.4]}
58... Nxf4 {[%clk 0:00:15.6]} 59. Ne7+ {[%clk 0:00:05.5]} 59... Kd7 {[%clk
0:00:15.5]} 60. Nd5 {[%clk 0:00:05.4]} 60... Ne6+ {[%clk 0:00:15.6]} 61. Kc4
{[%clk 0:00:05.3]} 61... Nd8 {[%clk 0:00:11.2]} 62. Nf4 {[%clk 0:00:02.7]} 62...
Nc6 {[%clk 0:00:10.4]} 63. e6+ {[%clk 0:00:03.1]} 63... Kd6 {[%clk 0:00:11.3]}
64. Kb5 {[%clk 0:00:03.6]} 64... Ne7 {[%clk 0:00:03.3]} 65. Kxa5 {[%clk
0:00:03.3]} 65... Ke5 {[%clk 0:00:04]} 66. Nd3+ {[%clk 0:00:03.2]} 66... Kxe6
{[%clk 0:00:04.4]} 67. Kb6 {[%clk 0:00:03.7]} 67... Nd5+ {[%clk 0:00:02.5]} 68.
Kb7 {[%clk 0:00:04.2]} 68... Nc3 {[%clk 0:00:01.5]} 69. a5 {[%clk 0:00:04.3]}
69... Kd6 {[%clk 0:00:01.9]} 70. a6 {[%clk 0:00:04.4]} 70... Nb5 {[%clk
0:00:02.6]} 71. Nb4 {[%clk 0:00:03.7]} 71... Nc7 {[%clk 0:00:02]} 72. a7 {[%clk
0:00:03.5]} 72... Kd7 {[%clk 0:00:02.8]} 73. Nd5 {[%clk 0:00:03.1]} 73... Nxd5
{[%clk 0:00:01.2]} 74. a8=Q {[%clk 0:00:03.2]} 74... Ne7 {[%clk 0:00:01.7]} 75.
Qa4+ {[%clk 0:00:02.8]} 75... Kd6 {[%clk 0:00:02.2]} 76. Qd4+ {[%clk 0:00:02.6]}
76... Nd5 {[%clk 0:00:02.1]} 77. Qd1 {[%clk 0:00:03.5]} 77... Kc5 {[%clk
0:00:02.4]} 78. Kc8 {[%clk 0:00:03.4]} 78... Kd6 {[%clk 0:00:02.2]} 79. Qd4
{[%clk 0:00:02.8]} 79... Kc6 {[%clk 0:00:01.7]} 80. Kd8 {[%clk 0:00:03.3]} 80...
Kd6 {[%clk 0:00:01.9]} 81. Qf2 {[%clk 0:00:03.4]} 81... Ke6 {[%clk 0:00:02]} 82.
Ke8 {[%clk 0:00:03.8]} 82... Nf6+ {[%clk 0:00:01.8]} 83. Kf8 {[%clk 0:00:03.8]}
83... Nd7+ {[%clk 0:00:01.4]} 84. Kg7 {[%clk 0:00:03.3]} 84... Ne5 {[%clk
0:00:02.3]} 85. Qe3 {[%clk 0:00:02.7]} 85... Kd5 {[%clk 0:00:03.2]} 86. Kf6
{[%clk 0:00:03.1]} 86... Nc4 {[%clk 0:00:02.9]} 87. Qg5+ {[%clk 0:00:03.1]}
87... Kd4 {[%clk 0:00:02.8]} 88. Kf5 {[%clk 0:00:03.7]} 88... Kd5 {[%clk
0:00:02.1]} 89. Qf4 {[%clk 0:00:04.6]} 89... Nd6+ {[%clk 0:00:02.3]} 90. Kf6
{[%clk 0:00:04.5]} 90... Ne4+ {[%clk 0:00:02.8]} 91. Ke7 {[%clk 0:00:04.5]}
91... Nc5 {[%clk 0:00:02.8]} 92. Qf5+ {[%clk 0:00:04.9]} 92... Kc6 {[%clk
0:00:02.8]} 93. Kf6 {[%clk 0:00:03]} 93... Kd6 {[%clk 0:00:02.8]} 94. Qf4+
{[%clk 0:00:03]} 94... Kd5 {[%clk 0:00:03.1]} 95. Ke7 {[%clk 0:00:03.2]} 95...
Kc6 {[%clk 0:00:02.7]} 96. Qf5 {[%clk 0:00:03.7]} 96... Nb7 {[%clk 0:00:02.1]}
97. Ke6 {[%clk 0:00:03.9]} 97... Nc5+ {[%clk 0:00:02.4]} 98. Ke5 {[%clk
0:00:04.6]} 98... Nd7+ {[%clk 0:00:02.8]} 99. Kd4 {[%clk 0:00:04.9]} 99... Kd6
{[%clk 0:00:02.6]} 100. Qg6+ {[%clk 0:00:04.8]} 100... Ke7 {[%clk 0:00:02.3]}
101. Kd5 {[%clk 0:00:05.7]} 101... Nf6+ {[%clk 0:00:02.6]} 102. Ke5 {[%clk
0:00:05.3]} 102... Nd7+ {[%clk 0:00:03.3]} 103. Kd4 {[%clk 0:00:05.9]} 103...
Nf6 {[%clk 0:00:03.3]} 104. Qf5 {[%clk 0:00:06.5]} 104... Nd7 {[%clk 0:00:03.3]}
105. Kd5 {[%clk 0:00:06.8]} 105... Nf6+ {[%clk 0:00:03]} 106. Kc6 {[%clk
0:00:07.5]} 106... Ne8 {[%clk 0:00:01.9]} 107. Qe5+ {[%clk 0:00:06.5]} 107...
Kf7 {[%clk 0:00:02.2]} 108. Kd7 {[%clk 0:00:07.1]} 108... Nf6+ {[%clk
0:00:02.9]} 109. Kd8 {[%clk 0:00:07.6]} 109... Ng8 {[%clk 0:00:02.9]} 110. Qf4+
{[%clk 0:00:07]} 110... Nf6 {[%clk 0:00:03]} 111. Qf5 {[%clk 0:00:07.6]} 111...
Kg7 {[%clk 0:00:02.9]} 112. Ke7 {[%clk 0:00:08.1]} 112... Ng8+ {[%clk 0:00:03]}
113. Ke6 {[%clk 0:00:08.7]} 113... Nh6 {[%clk 0:00:02.7]} 114. Qg5+ {[%clk
0:00:08.8]} 114... Kh7 {[%clk 0:00:02.9]} 115. Kf6 {[%clk 0:00:09]} 115... Ng8+
{[%clk 0:00:03.5]} 116. Kf7 {[%clk 0:00:08.3]} 116... Nh6+ {[%clk 0:00:04]} 117.
Kf8 {[%clk 0:00:08.9]} 117... Nf7 {[%clk 0:00:02.6]} 118. Qg7# {[%clk 0:00:09]}
1-0

[Event "Early-Titled-Tuesday-Blitz-March-05-2024"]
[Site "Chess.com"]
[Date "2024.03.05"]
[Round "11"]
[White "ChessLover0108"]
[Black "wonderfultime"]
[Result "1/2-1/2"]
[WhiteElo "2963"]
[BlackElo "3038"]
[TimeControl "180+1"]
[EndTime "10:13:26 PST"]
[Termination "Game drawn by 50-move rule"]

1. d4 {[%clk 0:03:00.9]} 1... d5 {[%clk 0:03:00]} 2. c4 {[%clk 0:03:01.3]} 2...
e6 {[%clk 0:03:00.4]} 3. Nc3 {[%clk 0:03:01.3]} 3... Bb4 {[%clk 0:03:00.8]} 4.
a3 {[%clk 0:03:00.3]} 4... Bxc3+ {[%clk 0:03:00.9]} 5. bxc3 {[%clk 0:03:01.2]}
5... c6 {[%clk 0:03:01.1]} 6. e3 {[%clk 0:02:57.2]} 6... Nf6 {[%clk 0:03:01]} 7.
Bd3 {[%clk 0:02:51.4]} 7... O-O {[%clk 0:03:00]} 8. a4 {[%clk 0:02:45.8]} 8...
b6 {[%clk 0:02:56.6]} 9. Nf3 {[%clk 0:02:15.2]} 9... Ba6 {[%clk 0:02:55.6]} 10.
Qe2 {[%clk 0:02:15.9]} 10... Nbd7 {[%clk 0:02:42.9]} 11. O-O {[%clk 0:02:11]}
11... Qc7 {[%clk 0:02:39]} 12. Ba3 {[%clk 0:01:59.6]} 12... Rfe8 {[%clk
0:02:34.2]} 13. Rfc1 {[%clk 0:01:38.6]} 13... Rac8 {[%clk 0:02:33]} 14. Nd2
{[%clk 0:01:34.3]} 14... e5 {[%clk 0:02:18.2]} 15. Qf1 {[%clk 0:01:34.7]} 15...
g6 {[%clk 0:01:50.9]} 16. h3 {[%clk 0:01:32.6]} 16... c5 {[%clk 0:01:23.3]} 17.
cxd5 {[%clk 0:01:19.2]} 17... Bxd3 {[%clk 0:01:24.2]} 18. Qxd3 {[%clk
0:01:19.6]} 18... c4 {[%clk 0:01:24.9]} 19. Qc2 {[%clk 0:01:09.7]} 19... Nxd5
{[%clk 0:01:24.1]} 20. Ne4 {[%clk 0:01:06.8]} 20... Re6 {[%clk 0:00:52.1]} 21.
Rd1 {[%clk 0:01:05]} 21... exd4 {[%clk 0:00:51.1]} 22. Rxd4 {[%clk 0:01:05.9]}
22... N7f6 {[%clk 0:00:44.4]} 23. Ng5 {[%clk 0:01:04.9]} 23... Ree8 {[%clk
0:00:42.7]} 24. Rad1 {[%clk 0:01:03.8]} 24... Qe5 {[%clk 0:00:27.7]} 25. Nf3
{[%clk 0:00:43.8]} 25... Qe6 {[%clk 0:00:28.1]} 26. Nd2 {[%clk 0:00:19]} 26...
a6 {[%clk 0:00:20.7]} 27. Nxc4 {[%clk 0:00:12.1]} 27... Rxc4 {[%clk 0:00:20.7]}
28. Rxc4 {[%clk 0:00:06.8]} 28... Nxe3 {[%clk 0:00:21.4]} 29. fxe3 {[%clk
0:00:02.4]} 29... Qxc4 {[%clk 0:00:21.9]} 30. Rd4 {[%clk 0:00:03.2]} 30... Qe6
{[%clk 0:00:21.5]} 31. Qd3 {[%clk 0:00:03.2]} 31... Kg7 {[%clk 0:00:14.7]} 32.
c4 {[%clk 0:00:03.4]} 32... Qxe3+ {[%clk 0:00:13.4]} 33. Qxe3 {[%clk 0:00:02]}
33... Rxe3 {[%clk 0:00:14.3]} 34. Bb2 {[%clk 0:00:02.5]} 34... Rb3 {[%clk
0:00:13.9]} 35. Rd2 {[%clk 0:00:02.8]} 35... g5 {[%clk 0:00:10]} 36. Be5 {[%clk
0:00:03.3]} 36... Re3 {[%clk 0:00:10.3]} 37. Bb2 {[%clk 0:00:02.9]} 37... Re6
{[%clk 0:00:11]} 38. Rd5 {[%clk 0:00:02]} 38... Kg6 {[%clk 0:00:11.5]} 39. Rd8
{[%clk 0:00:02.4]} 39... h6 {[%clk 0:00:11.2]} 40. Bd4 {[%clk 0:00:02.8]} 40...
Rc6 {[%clk 0:00:11.3]} 41. Be5 {[%clk 0:00:02.3]} 41... Ne4 {[%clk 0:00:10.7]}
42. Rd4 {[%clk 0:00:02.1]} 42... Nc5 {[%clk 0:00:09.8]} 43. Bd6 {[%clk
0:00:01.4]} 43... Nxa4 {[%clk 0:00:08]} 44. Bf8 {[%clk 0:00:01.7]} 44... Nc5
{[%clk 0:00:06.5]} 45. Rd5 {[%clk 0:00:01.9]} 45... Ne6 {[%clk 0:00:06.7]} 46.
Be7 {[%clk 0:00:02.5]} 46... Rxc4 {[%clk 0:00:07]} 47. Rd6 {[%clk 0:00:03.2]}
47... b5 {[%clk 0:00:06.5]} 48. Rxa6 {[%clk 0:00:03.5]} 48... Rc7 {[%clk
0:00:06.2]} 49. Bb4 {[%clk 0:00:03.2]} 49... Rc4 {[%clk 0:00:06.6]} 50. Be7
{[%clk 0:00:01.9]} 50... h5 {[%clk 0:00:06.3]} 51. Rb6 {[%clk 0:00:02.4]} 51...
Rc1+ {[%clk 0:00:05.3]} 52. Kh2 {[%clk 0:00:02.8]} 52... Rb1 {[%clk 0:00:06.2]}
53. Bd6 {[%clk 0:00:02.9]} 53... h4 {[%clk 0:00:06.5]} 54. Be7 {[%clk
0:00:03.1]} 54... Rb3 {[%clk 0:00:06.3]} 55. Rb7 {[%clk 0:00:03.4]} 55... Nf4
{[%clk 0:00:05.2]} 56. Rb6+ {[%clk 0:00:04]} 56... Kh5 {[%clk 0:00:05.2]} 57.
Bd6 {[%clk 0:00:01.8]} 57... Nd3 {[%clk 0:00:04.3]} 58. Rb8 {[%clk 0:00:01.3]}
58... Kg6 {[%clk 0:00:04.2]} 59. Rb6 {[%clk 0:00:02]} 59... Kf5 {[%clk
0:00:04.5]} 60. Be7 {[%clk 0:00:02.5]} 60... Rb2 {[%clk 0:00:03.7]} 61. Rf6+
{[%clk 0:00:02.8]} 61... Ke4 {[%clk 0:00:04.4]} 62. Rxf7 {[%clk 0:00:02.8]}
62... Nf4 {[%clk 0:00:05.1]} 63. Kh1 {[%clk 0:00:02.4]} 63... Rb1+ {[%clk
0:00:05]} 64. Kh2 {[%clk 0:00:02.8]} 64... Rb2 {[%clk 0:00:05.9]} 65. Kh1 {[%clk
0:00:03.5]} 65... Nxg2 {[%clk 0:00:05.7]} 66. Bxg5 {[%clk 0:00:03.7]} 66... Ne1
{[%clk 0:00:06]} 67. Re7+ {[%clk 0:00:03.2]} 67... Kf5 {[%clk 0:00:05.7]} 68.
Bc1 {[%clk 0:00:01.5]} 68... Rb3 {[%clk 0:00:03.3]} 69. Rxe1 {[%clk 0:00:01.3]}
69... Rxh3+ {[%clk 0:00:04.2]} 70. Kg2 {[%clk 0:00:01.8]} 70... Rc3 {[%clk
0:00:05.1]} 71. Kf2 {[%clk 0:00:01.5]} 71... h3 {[%clk 0:00:05.3]} 72. Be3
{[%clk 0:00:02.1]} 72... b4 {[%clk 0:00:05.7]} 73. Kf3 {[%clk 0:00:02.3]} 73...
b3 {[%clk 0:00:06]} 74. Rb1 {[%clk 0:00:02.1]} 74... h2 {[%clk 0:00:06.2]} 75.
Rh1 {[%clk 0:00:01.5]} 75... b2 {[%clk 0:00:06.5]} 76. Ke2 {[%clk 0:00:02.2]}
76... Rc1 {[%clk 0:00:05.2]} 77. Bxc1 {[%clk 0:00:01.4]} 77... b1=Q {[%clk
0:00:05.6]} 78. Kf2 {[%clk 0:00:01.9]} 78... Qc2+ {[%clk 0:00:05.4]} 79. Kg3
{[%clk 0:00:02.1]} 79... Qd3+ {[%clk 0:00:05.9]} 80. Kxh2 {[%clk 0:00:02.2]}
80... Qe2+ {[%clk 0:00:06.4]} 81. Kg3 {[%clk 0:00:02.5]} 81... Qd3+ {[%clk
0:00:06.4]} 82. Kf2 {[%clk 0:00:02.6]} 82... Qc2+ {[%clk 0:00:05.7]} 83. Kg3
{[%clk 0:00:02.9]} 83... Qc3+ {[%clk 0:00:06.3]} 84. Kf2 {[%clk 0:00:03]} 84...
Qc5+ {[%clk 0:00:05.5]} 85. Be3 {[%clk 0:00:02.8]} 85... Qc2+ {[%clk 0:00:06.2]}
86. Kg3 {[%clk 0:00:02.6]} 86... Qe4 {[%clk 0:00:06.6]} 87. Rf1+ {[%clk
0:00:03.2]} 87... Kg6 {[%clk 0:00:06.9]} 88. Re1 {[%clk 0:00:03.5]} 88... Qb4
{[%clk 0:00:06.9]} 89. Kf2 {[%clk 0:00:03.6]} 89... Kf5 {[%clk 0:00:06.9]} 90.
Re2 {[%clk 0:00:03.2]} 90... Kg4 {[%clk 0:00:06.6]} 91. Bd2 {[%clk 0:00:02.9]}
91... Qc5+ {[%clk 0:00:06.2]} 92. Be3 {[%clk 0:00:02.4]} 92... Qc6 {[%clk
0:00:06.9]} 93. Ke1 {[%clk 0:00:02.7]} 93... Kf3 {[%clk 0:00:06.8]} 94. Bd2
{[%clk 0:00:03]} 94... Qb6 {[%clk 0:00:06.1]} 95. Re3+ {[%clk 0:00:02.9]} 95...
Kg4 {[%clk 0:00:06.9]} 96. Kd1 {[%clk 0:00:03]} 96... Qb1+ {[%clk 0:00:06.9]}
97. Bc1 {[%clk 0:00:03.4]} 97... Qa2 {[%clk 0:00:05.6]} 98. Rd3 {[%clk
0:00:01.9]} 98... Kf5 {[%clk 0:00:05.2]} 99. Re3 {[%clk 0:00:02.3]} 99... Qg2
{[%clk 0:00:03.6]} 100. Bd2 {[%clk 0:00:03.2]} 100... Qh2 {[%clk 0:00:02.5]}
101. Kc2 {[%clk 0:00:03.6]} 101... Qc7+ {[%clk 0:00:03]} 102. Kd1 {[%clk
0:00:04.2]} 102... Qb7 {[%clk 0:00:03.7]} 103. Ke2 {[%clk 0:00:04.9]} 103... Qb1
{[%clk 0:00:03.8]} 104. Rf3+ {[%clk 0:00:04.4]} 104... Kg4 {[%clk 0:00:03.8]}
105. Re3 {[%clk 0:00:04.6]} 105... Qb5+ {[%clk 0:00:03.6]} 106. Kd1 {[%clk
0:00:05.1]} 106... Qc4 {[%clk 0:00:04]} 107. Ke1 {[%clk 0:00:05]} 107... Qc2
{[%clk 0:00:03.5]} 108. Ke2 {[%clk 0:00:05.2]} 108... Kf5 {[%clk 0:00:03.6]}
109. Rf3+ {[%clk 0:00:05.1]} 109... Ke4 {[%clk 0:00:03.1]} 110. Rf4+ {[%clk
0:00:05.5]} 110... Ke5 {[%clk 0:00:03.4]} 111. Rf3 {[%clk 0:00:06.4]} 111...
Qc4+ {[%clk 0:00:03.8]} 112. Ke1 {[%clk 0:00:06.2]} 112... Qg4 {[%clk
0:00:04.4]} 113. Re3+ {[%clk 0:00:06.1]} 113... Kd4 {[%clk 0:00:05.1]} 114. Rc3
{[%clk 0:00:06]} 114... Qh5 {[%clk 0:00:04.7]} 115. Re3 {[%clk 0:00:06.2]}
115... Qh1+ {[%clk 0:00:03.3]} 116. Ke2 {[%clk 0:00:06.6]} 116... Qg2+ {[%clk
0:00:03.8]} 117. Kd1 {[%clk 0:00:07.3]} 117... Qf1+ {[%clk 0:00:03.2]} 118. Kc2
{[%clk 0:00:07.7]} 118... Qb5 {[%clk 0:00:03.4]} 119. Rc3 {[%clk 0:00:06.3]}
119... Qf5+ {[%clk 0:00:02.6]} 120. Kc1 {[%clk 0:00:06.1]} 120... Qg6 {[%clk
0:00:03.2]} 121. Re3 {[%clk 0:00:05.4]} 121... Kc4 {[%clk 0:00:03.5]} 122. Rc3+
{[%clk 0:00:05]} 122... Kd4 {[%clk 0:00:04.2]} 123. Re3 {[%clk 0:00:05.7]}
123... Qg8 {[%clk 0:00:03.5]} 124. Kd1 {[%clk 0:00:05.8]} 124... Qa2 {[%clk
0:00:03.8]} 125. Ke2 {[%clk 0:00:05.9]} 125... Qa6+ {[%clk 0:00:04.3]} 126. Ke1
{[%clk 0:00:06]} 126... Qc4 {[%clk 0:00:04.4]} 127. Kd1 {[%clk 0:00:05.1]}
127... Qb5 {[%clk 0:00:04.8]} 128. Ke1 {[%clk 0:00:05.2]} 128... Qh5 {[%clk
0:00:05]} 129. Rc3 {[%clk 0:00:05]} 129... Ke4 {[%clk 0:00:05.5]} 130. Re3+
{[%clk 0:00:05]} 1/2-1/2